bitfinex/quotes_BTCUSD_20251010
["timestamp","ask_amount","ask_price","bid_price","bid_amount"]
[1760074309310,0.98293435,121500.0,121490.0,0.01201001]
[1760074309521,1.60244141,121500.0,121490.0,0.00100001]
[1760074309744,1.60244141,121500.0,121490.0,0.00200001]
[1760074314295,1.36984141,121500.0,121490.0,0.00200001]
[1760074314505,1.60240141,121500.0,121490.0,0.00200001]
[1760074314912,1.36984141,121500.0,121490.0,0.00200001]
[1760074315120,1.60240141,121500.0,121490.0,0.00200001]
[1760074316732,1.36984141,121500.0,121490.0,0.00200001]
[1760074316941,1.60240141,121500.0,121490.0,0.00200001]
[1760074317142,1.36984141,121500.0,121490.0,0.00200001]
[1760074317341,1.60236141,121500.0,121490.0,0.00200001]
[1760074319139,1.36984141,121500.0,121490.0,0.00200001]
[1760074319346,1.70984141,121500.0,121490.0,0.00200001]
[1760074319552,1.94236141,121500.0,121490.0,0.00200001]
[1760074319672,1.70984141,121500.0,121490.0,0.00200001]
[1760074319876,1.94236141,121500.0,121490.0,0.00200001]
[1760074320291,1.96709198,121500.0,121490.0,0.00200001]
[1760074323182,1.73457198,121500.0,121490.0,0.00200001]
[1760074323388,1.96709198,121500.0,121490.0,0.00200001]
[1760074325497,1.73457198,121500.0,121490.0,0.00200001]
[1760074325696,1.96709198,121500.0,121490.0,0.00200001]
[1760074326333,2.35399904,121500.0,121490.0,0.00200001]
[1760074326510,1.96474771,121500.0,121490.0,0.00200001]
[1760074328479,1.97243906,121500.0,121490.0,0.00200001]
[1760074328698,1.97243906,121500.0,121490.0,0.10200001]
[1760074328943,1.73991906,121500.0,121490.0,0.10200001]
[1760074329141,1.98782181,121500.0,121490.0,0.10200001]
[1760074329377,1.75466784,121500.0,121490.0,0.10200001]
[1760074329596,1.98718784,121500.0,121490.0,0.10200001]
[1760074330652,0.1646226,121490.0,121480.0,0.00015116]
[1760074330872,2.11287226,121490.0,121480.0,0.00015116]
[1760074331079,0.93846382,121470.0,121460.0,0.0004]
[1760074331300,1.70409395,121470.0,121460.0,0.0004]
[1760074331557,1.70409395,121470.0,121460.0,0.00194236]
[1760074331994,1.47093395,121470.0,121460.0,0.00194236]
[1760074332209,1.72883298,121470.0,121460.0,0.00194236]
[1760074332862,1.91273194,121470.0,121460.0,0.00194236]
[1760074333073,2.14589194,121470.0,121460.0,0.00194236]
[1760074333500,1.91273194,121470.0,121460.0,0.00194236]
[1760074333727,0.551611,121430.0,121410.0,0.17702071]
[1760074333948,0.87050456,121420.0,121410.0,0.02936417]
[1760074334170,1.36421162,121420.0,121410.0,0.02936417]
[1760074334399,1.59745162,121420.0,121410.0,0.00090417]
[1760074335276,1.7639393,121420.0,121410.0,0.00090417]
[1760074335488,2.03875224,121420.0,121410.0,0.00190417]
[1760074335717,2.10082762,121420.0,121410.0,0.00190417]
[1760074335933,2.48781468,121420.0,121410.0,0.00190417]
[1760074336157,1.43910762,121420.0,121410.0,0.00190417]
[1760074336367,2.10930073,121420.0,121410.0,0.00190417]
[1760074337030,2.10934073,121420.0,121410.0,0.00190417]
[1760074337230,1.87590073,121420.0,121410.0,0.00190417]
[1760074337453,2.10930073,121420.0,121410.0,0.00190417]
[1760074337659,1.87590073,121420.0,121410.0,0.00090417]
[1760074337867,2.10930073,121420.0,121410.0,0.00090417]
[1760074338090,2.26280779,121420.0,121410.0,0.00190417]
[1760074338550,2.26280779,121420.0,121410.0,0.00090417]
[1760074338551,2.49620779,121420.0,121410.0,0.00090417]
[1760074339194,2.49620779,121420.0,121410.0,0.00190417]
[1760074340110,2.52639969,121420.0,121410.0,0.00190417]
[1760074341342,2.55115056,121420.0,121410.0,0.00190417]
[1760074341696,2.31771056,121420.0,121410.0,0.00190417]
[1760074341902,2.55127056,121420.0,121410.0,0.00190417]
[1760074342667,2.52651969,121420.0,121410.0,0.00190417]
[1760074344377,1.86455969,121420.0,121410.0,0.00190417]
[1760074344612,1.95556192,121420.0,121410.0,0.00447619]
[1760074344824,2.12027942,121420.0,121410.0,0.00447619]
[1760074345267,2.12091339,121420.0,121410.0,0.00447619]
[1760074345453,2.12082432,121420.0,121410.0,0.00447619]
[1760074345887,1.45882432,121420.0,121410.0,0.00447619]
[1760074346092,2.12086432,121420.0,121410.0,0.00447619]
[1760074347442,1.42867242,121420.0,121410.0,0.00447619]
[1760074347667,2.09067242,121420.0,121410.0,0.00447619]
[1760074349364,1.85727242,121420.0,121410.0,0.00447619]
[1760074349581,2.09067242,121420.0,121410.0,0.00447619]
[1760074350462,1.42803845,121420.0,121410.0,0.00447619]
[1760074350679,2.09007845,121420.0,121410.0,0.00447619]
[1760074352177,2.10770279,121420.0,121410.0,0.00447619]
[1760074353017,1.44566279,121420.0,121410.0,0.00447619]
[1760074353225,2.10766279,121420.0,121410.0,0.00447619]
[1760074353433,1.87430279,121420.0,121410.0,0.00447619]
[1760074353689,2.10766279,121420.0,121410.0,0.00447619]
[1760074354384,2.34886451,121420.0,121410.0,0.00447619]
[1760074354588,2.50222771,121420.0,121410.0,0.00447619]
[1760074355229,2.52442461,121420.0,121410.0,0.00447619]
[1760074355440,2.52505858,121420.0,121410.0,0.00447619]
[1760074356259,2.13815152,121420.0,121410.0,0.00447619]
[1760074357538,1.47615152,121420.0,121410.0,0.00447619]
[1760074357767,2.13811152,121420.0,121410.0,0.00447619]
[1760074358187,2.16778659,121420.0,121410.0,0.00447619]
[1760074358412,2.16784093,121420.0,121410.0,0.00447619]
[1760074358628,2.15944782,121420.0,121410.0,0.00447619]
[1760074359275,2.13725092,121420.0,121410.0,0.00447619]
[1760074359481,1.3634368,121420.0,121410.0,0.00447619]
[1760074359680,1.87980231,121420.0,121410.0,0.00447619]
[1760074360358,1.89445777,121420.0,121410.0,0.00447619]
[1760074360774,1.69128967,121420.0,121410.0,0.00447619]
[1760074361194,1.92456967,121420.0,121410.0,0.00447619]
[1760074362291,1.88023914,121420.0,121410.0,0.00447619]
[1760074363421,0.16475821,121390.0,121380.0,0.20736966]
[1760074363628,0.52434424,121390.0,121380.0,0.22399008]
[1760074363804,0.52444022,121390.0,121380.0,0.22553399]
[1760074364235,0.54666203,121390.0,121380.0,0.22553399]
[1760074364682,0.31342203,121390.0,121380.0,0.03051433]
[1760074364936,1.16978754,121390.0,121380.0,0.00259433]
[1760074365153,1.17719481,121390.0,121380.0,0.00259433]
[1760074365373,1.45487844,121390.0,121380.0,0.00259433]
[1760074365598,1.41043481,121390.0,121380.0,0.00359433]
[1760074366052,1.41043481,121390.0,121380.0,0.00259433]
[1760074366262,1.41883769,121390.0,121380.0,0.00259433]
[1760074366479,1.51740827,121390.0,121380.0,0.00259433]
[1760074366691,1.30641105,121390.0,121380.0,0.00259433]
[1760074366901,1.51740827,121390.0,121380.0,0.00259433]
[1760074367358,1.19836827,121390.0,121380.0,0.00259433]
[1760074367556,1.86036827,121390.0,121380.0,0.00159433]
[1760074367982,1.8597343,121390.0,121380.0,0.00259433]
[1760074368194,1.88937168,121390.0,121380.0,0.00259433]
[1760074368442,1.88937168,121390.0,121380.0,0.00359433]
[1760074368666,1.88937168,121390.0,121380.0,0.00259433]
[1760074368878,1.8597343,121390.0,121380.0,0.00159433]
[1760074369439,1.6264143,121390.0,121380.0,0.00159433]
[1760074369676,1.8597343,121390.0,121380.0,0.00159433]
[1760074370273,1.88935796,121390.0,121380.0,0.00159433]
[1760074371559,1.22735796,121390.0,121380.0,0.00159433]
[1760074371775,1.88935796,121390.0,121380.0,0.00159433]
[1760074372347,1.37299245,121390.0,121380.0,0.00159433]
[1760074372532,1.88935796,121390.0,121380.0,0.00159433]
[1760074372934,1.88999193,121390.0,121380.0,0.00159433]
[1760074373326,1.89004489,121390.0,121380.0,0.00159433]
[1760074373748,1.88233407,121390.0,121380.0,0.00159433]
[1760074373949,1.65672489,121390.0,121380.0,0.00159433]
[1760074374404,1.89000489,121390.0,121380.0,0.00159433]
[1760074374934,1.94033803,121390.0,121380.0,0.00159433]
[1760074375151,1.86034123,121390.0,121380.0,0.00159433]
[1760074377597,1.34397572,121390.0,121380.0,0.00159433]
[1760074377819,1.86034123,121390.0,121380.0,0.00159433]
[1760074378964,1.62710123,121390.0,121380.0,0.00159433]
[1760074379178,1.86030123,121390.0,121380.0,0.00159433]
[1760074379807,1.89045313,121390.0,121380.0,0.00159433]
[1760074382152,1.86030123,121390.0,121380.0,0.00159433]
[1760074382396,1.85966726,121390.0,121380.0,0.00159433]
[1760074382754,1.88978994,121390.0,121380.0,0.00159433]
[1760074383124,1.88978441,121390.0,121380.0,0.00159433]
[1760074383325,1.22790441,121390.0,121380.0,0.00159433]
[1760074383572,1.22790441,121390.0,121380.0,0.0013687]
[1760074383791,2.23286441,121390.0,121380.0,0.0013687]
[1760074384294,2.26245248,121390.0,121380.0,0.0013687]
[1760074384650,2.02921248,121390.0,121380.0,0.0013687]
[1760074384849,2.0377133,121390.0,121380.0,0.0013687]
[1760074385052,2.20247151,121390.0,121380.0,0.0013687]
[1760074387237,2.1809157,121390.0,121380.0,0.0013687]
[1760074387875,2.20310548,121390.0,121380.0,0.0013687]
[1760074388285,2.2609125,121390.0,121380.0,0.0013687]
[1760074388884,2.20310548,121390.0,121380.0,0.0013687]
[1760074389422,2.18429673,121390.0,121380.0,0.0013687]
[1760074389861,0.66289122,121390.0,121380.0,0.0013687]
[1760074390055,2.62919673,121390.0,121380.0,0.0013687]
[1760074390676,1.62415673,121390.0,121380.0,0.0013687]
[1760074390885,2.28615673,121390.0,121380.0,0.0013687]
[1760074391080,1.73633829,121390.0,121380.0,0.0013687]
[1760074391300,2.25206983,121390.0,121380.0,0.0013687]
[1760074391924,0.62943829,121390.0,121380.0,0.0013687]
[1760074392134,1.29143829,121390.0,121380.0,0.0013687]
[1760074392343,0.85116565,121390.0,121380.0,0.0164687]
[1760074392545,1.17575506,121390.0,121380.0,0.0164687]
[1760074392992,1.16743218,121390.0,121380.0,0.0164687]
[1760074393202,1.16743218,121390.0,121380.0,0.0013687]
[1760074393417,0.00063397,121390.0,121380.0,0.54418421]
[1760074393605,0.42943397,121390.0,121380.0,0.21611049]
[1760074393874,0.66267397,121390.0,121380.0,0.21611049]
[1760074394509,0.00063397,121390.0,121380.0,0.732476]
[1760074394721,0.08576,121390.0,121380.0,0.732476]
[1760074395150,0.31912,121390.0,121380.0,0.732476]
[1760074396196,0.31912,121390.0,121380.0,0.734476]
[1760074396413,0.08576,121390.0,121380.0,0.21811049]
[1760074396599,0.31912,121390.0,121380.0,0.21811049]
[1760074401914,0.08576,121390.0,121380.0,0.21811049]
[1760074402144,0.31904,121390.0,121380.0,0.21811049]
[1760074403058,0.31904,121390.0,121380.0,0.0033687]
[1760074403059,1.14334765,121390.0,121380.0,0.0033687]
[1760074403267,1.10688372,121390.0,121380.0,0.0033687]
[1760074403470,1.1149149,121390.0,121380.0,0.0033687]
[1760074403683,1.3481549,121390.0,121380.0,0.0033687]
[1760074404324,0.83178939,121390.0,121380.0,0.0033687]
[1760074404526,1.3481549,121390.0,121380.0,0.0033687]
[1760074404946,1.3481549,121390.0,121380.0,0.0023687]
[1760074405811,1.3481549,121390.0,121380.0,0.0033687]
[1760074406030,1.3481549,121390.0,121380.0,0.0023687]
[1760074406304,1.3481549,121390.0,121380.0,0.0013687]
[1760074406529,1.3481549,121390.0,121380.0,0.0033687]
[1760074409804,1.34012372,121390.0,121380.0,0.0033687]
[1760074410035,1.34036372,121390.0,121380.0,0.0184687]
[1760074410278,1.68332372,121390.0,121380.0,0.0298187]
[1760074410513,0.76872,121390.0,121380.0,0.75095317]
[1760074410755,1.0022,121390.0,121380.0,0.21811049]
[1760074410943,1.16695821,121390.0,121380.0,0.21811049]
[1760074411840,0.73827821,121390.0,121380.0,0.21811049]
[1760074412083,0.82399821,121390.0,121380.0,0.21811049]
[1760074413447,0.50475821,121390.0,121380.0,0.21811049]
[1760074413641,0.82399821,121390.0,121380.0,0.21811049]
[1760074414376,0.48399821,121390.0,121380.0,0.21811049]
[1760074414821,0.48395821,121390.0,121380.0,0.21811049]
[1760074415525,0.16475821,121390.0,121380.0,0.21811049]
[1760074415782,0.39823821,121390.0,121380.0,0.21811049]
[1760074416018,0.25047821,121390.0,121380.0,0.0298187]
[1760074416253,0.79982273,121390.0,121380.0,0.0033687]
[1760074416496,0.96458094,121390.0,121380.0,0.0033687]
[1760074417884,0.96458094,121390.0,121380.0,0.0187387]
[1760074418109,0.96462094,121390.0,121380.0,0.0187387]
[1760074421552,0.83559478,121390.0,121380.0,0.0309887]
[1760074422000,0.60207478,121390.0,121380.0,0.21941049]
[1760074422223,0.83551478,121390.0,121380.0,0.21941049]
[1760074423603,0.31916,121390.0,121380.0,0.21941049]
[1760074423825,0.23348,121390.0,121380.0,0.21941049]
[1760074424042,0.3192,121390.0,121380.0,0.21941049]
[1760074425634,0.23344,121390.0,121380.0,0.21941049]
[1760074425867,0.48391821,121390.0,121380.0,0.21941049]
[1760074426577,0.31916,121390.0,121380.0,0.21941049]
[1760074427677,0.48391821,121390.0,121380.0,0.21941049]
[1760074428131,0.54672357,121410.0,121390.0,0.16475821]
[1760074428132,0.19835213,121410.0,121390.0,0.16475821]
[1760074428357,1.21120399,121400.0,121390.0,0.19298403]
[1760074428580,1.21120399,121400.0,121390.0,0.21502821]
[1760074429016,0.97780399,121400.0,121390.0,0.05027]
[1760074429231,1.59854334,121400.0,121380.0,0.20933037]
[1760074429476,0.38733935,121390.0,121380.0,0.22478037]
[1760074430074,0.38733935,121390.0,121380.0,0.22378037]
[1760074431233,0.38733935,121390.0,121380.0,0.22478037]
[1760074431449,0.59046464,121400.0,121380.0,0.22478037]
[1760074431655,0.63780399,121400.0,121390.0,0.16475821]
[1760074431885,0.87120399,121400.0,121390.0,0.16475821]
[1760074432087,0.87120399,121400.0,121390.0,0.18020821]
[1760074432326,0.87120399,121400.0,121380.0,0.20933037]
[1760074432748,0.87120399,121400.0,121390.0,0.01645]
[1760074433377,0.87120399,121400.0,121390.0,0.01545]
[1760074433797,0.87120399,121400.0,121390.0,0.01630401]
[1760074437279,0.88664429,121400.0,121390.0,0.01630401]
[1760074437502,1.27398364,121400.0,121390.0,0.00185401]
[1760074437714,1.27390364,121400.0,121390.0,0.00185401]
[1760074440792,1.1237057,121400.0,121390.0,0.00185401]
[1760074441011,1.85877052,121400.0,121390.0,0.00185401]
[1760074441227,2.09209052,121400.0,121390.0,0.00185401]
[1760074441669,2.10988245,121400.0,121390.0,0.00185401]
[1760074442304,2.10988245,121400.0,121390.0,0.00085401]
[1760074442516,2.09209052,121400.0,121390.0,0.00085401]
[1760074443133,2.1098768,121400.0,121390.0,0.00085401]
[1760074443340,1.78169046,121400.0,121390.0,0.00085401]
[1760074443537,2.42056469,121400.0,121390.0,0.00085401]
[1760074443799,2.44372208,121400.0,121390.0,0.00085401]
[1760074444365,2.42056469,121400.0,121390.0,0.00085401]
[1760074444567,1.75852469,121400.0,121390.0,0.00085401]
[1760074444823,2.42052469,121400.0,121390.0,0.00085401]
[1760074445219,2.44368148,121400.0,121390.0,0.00085401]
[1760074445753,2.42824362,121400.0,121390.0,0.00085401]
[1760074446371,2.42052469,121400.0,121390.0,0.00085401]
[1760074446781,2.42824318,121400.0,121390.0,0.00085401]
[1760074447421,2.42052469,121400.0,121390.0,0.00085401]
[1760074449165,2.42048469,121400.0,121390.0,0.00085401]
[1760074449580,2.44363788,121400.0,121390.0,0.00085401]
[1760074451055,2.44367788,121400.0,121390.0,0.00085401]
[1760074452084,1.78166934,121400.0,121390.0,0.00085401]
[1760074452321,2.44366934,121400.0,121390.0,0.00085401]
[1760074453149,2.21038354,121400.0,121390.0,0.00085401]
[1760074453367,2.44366354,121400.0,121390.0,0.00085401]
[1760074454543,1.78166354,121400.0,121390.0,0.00085401]
[1760074454756,2.44362128,121400.0,121390.0,0.00085401]
[1760074455195,1.78166128,121400.0,121390.0,0.00085401]
[1760074455399,2.44362128,121400.0,121390.0,0.00085401]
[1760074455803,0.61964323,121400.0,121390.0,0.00085401]
[1760074456011,0.62587514,121400.0,121390.0,0.00085401]
[1760074456246,0.67802089,121400.0,121390.0,0.21813222]
[1760074456471,0.67802089,121400.0,121390.0,0.05337401]
[1760074456472,0.59409861,121400.0,121390.0,0.05337401]
[1760074456685,2.25923552,121400.0,121390.0,0.00085401]
[1760074456896,2.04830348,121400.0,121390.0,0.00085401]
[1760074457104,2.04830449,121400.0,121390.0,0.00085401]
[1760074457350,2.04830452,121400.0,121390.0,0.00085401]
[1760074458170,2.43564387,121400.0,121390.0,0.00085401]
[1760074458502,1.87410423,121400.0,121390.0,0.00085401]
[1760074458738,2.53622423,121400.0,121390.0,0.00085401]
[1760074459213,2.49067009,121400.0,121390.0,0.00085401]
[1760074459440,2.50843237,121400.0,121390.0,0.00085401]
[1760074461803,2.50843247,121400.0,121390.0,0.00085401]
[1760074463972,2.42267247,121400.0,121390.0,0.00085401]
[1760074464176,1.68937442,121400.0,121390.0,0.00085401]
[1760074464393,2.85139247,121400.0,121390.0,0.00085401]
[1760074464588,2.42267247,121400.0,121390.0,0.00085401]
[1760074464798,2.85139247,121400.0,121390.0,0.00085401]
[1760074465000,2.87173447,121400.0,121390.0,0.00085401]
[1760074470056,2.85139247,121400.0,121390.0,0.00085401]
[1760074471338,2.85140297,121400.0,121390.0,0.00085401]
[1760074472438,2.850769,121400.0,121390.0,0.00085401]
[1760074475964,1.25995095,121400.0,121390.0,0.00085401]
[1760074476171,2.850769,121400.0,121390.0,0.00085401]
[1760074477445,2.85140319,121400.0,121390.0,0.00085401]
[1760074478248,1.76938194,121400.0,121390.0,0.00085401]
[1760074478411,2.93139999,121400.0,121390.0,0.00085401]
[1760074479278,2.85140319,121400.0,121390.0,0.00085401]
[1760074479489,1.84632319,121400.0,121390.0,0.00085401]
[1760074479697,2.85136319,121400.0,121390.0,0.00085401]
[1760074480570,2.42256319,121400.0,121390.0,0.00085401]
[1760074480787,2.85136319,121400.0,121390.0,0.00085401]
[1760074481633,2.72261784,121400.0,121390.0,0.00085401]
[1760074481890,2.56941464,121400.0,121390.0,0.00085401]
[1760074482095,2.80257464,121400.0,121390.0,0.00085401]
[1760074482506,2.80257464,121400.0,121390.0,1e-08]
[1760074482507,2.56941464,121400.0,121390.0,1e-08]
[1760074482710,2.82757463,121400.0,121390.0,1e-08]
[1760074483144,2.84857985,121400.0,121390.0,1e-08]
[1760074483907,2.87076963,121400.0,121390.0,1e-08]
[1760074485009,2.87176963,121400.0,121390.0,1e-08]
[1760074485218,2.97176962,121400.0,121390.0,1e-08]
[1760074485433,2.97076962,121400.0,121390.0,1e-08]
[1760074485871,2.87176963,121400.0,121390.0,1e-08]
[1760074486080,2.97176962,121400.0,121390.0,1e-08]
[1760074486502,2.97179366,121400.0,121390.0,1e-08]
[1760074488479,3.00138173,121400.0,121390.0,1e-08]
[1760074488886,3.44564776,121400.0,121390.0,1e-08]
[1760074489311,2.44056776,121400.0,121390.0,1e-08]
[1760074489561,3.41601969,121400.0,121390.0,1e-08]
[1760074490189,3.4160246,121400.0,121390.0,1e-08]
[1760074492557,3.44561267,121400.0,121390.0,1e-08]
[1760074492977,3.44557267,121400.0,121390.0,1e-08]
[1760074494096,3.00130664,121400.0,121390.0,1e-08]
[1760074495611,3.00138664,121400.0,121390.0,1e-08]
[1760074499734,3.00075267,121400.0,121390.0,1e-08]
[1760074501279,0.88240317,121400.0,121390.0,1e-08]
[1760074501501,2.68759587,121400.0,121390.0,1e-08]
[1760074501822,2.92067587,121400.0,121390.0,1e-08]
[1760074502034,2.68759587,121400.0,121390.0,1e-08]
[1760074502246,2.92067587,121400.0,121390.0,1e-08]
[1760074502446,3.00067267,121400.0,121390.0,1e-08]
[1760074502893,3.00067592,121400.0,121390.0,1e-08]
[1760074503500,3.27912011,121400.0,121390.0,1e-08]
[1760074504943,0.50477179,121380.0,121370.0,0.0004]
[1760074505155,1.9252889,121380.0,121370.0,0.00045041]
[1760074505362,2.0052857,121380.0,121370.0,0.00045041]
[1760074505822,2.00858724,121380.0,121370.0,0.00045041]
[1760074506210,2.07162215,121380.0,121370.0,0.00045041]
[1760074506685,1.83858215,121380.0,121370.0,0.00045041]
[1760074506887,2.3269458,121380.0,121370.0,0.00045041]
[1760074508450,2.84358215,121380.0,121370.0,0.00045041]
[1760074510418,2.86582388,121380.0,121370.0,0.00147985]
[1760074511375,1.86082388,121380.0,121370.0,0.00147985]
[1760074511580,2.26915073,121380.0,121370.0,0.00147985]
[1760074512002,2.246909,121380.0,121370.0,0.00147985]
[1760074512111,1.9837171,121380.0,121370.0,0.00147985]
[1760074512313,2.21675592,121380.0,121370.0,0.00147985]
[1760074512769,0.61986175,121380.0,121370.0,0.00147985]
[1760074512979,0.76356972,121380.0,121370.0,0.05143985]
[1760074513178,0.91364766,121380.0,121370.0,0.05143985]
[1760074513431,1.19708401,121380.0,121370.0,0.00147985]
[1760074513721,1.53708401,121380.0,121370.0,0.00147985]
[1760074513940,0.91364766,121380.0,121370.0,0.01689985]
[1760074514079,0.91364766,121380.0,121370.0,0.05143985]
[1760074514288,0.91364766,121380.0,121370.0,0.21622521]
[1760074514488,0.91364766,121380.0,121370.0,0.19355521]
[1760074514721,0.89048067,121380.0,121370.0,0.19355521]
[1760074514898,0.89048067,121380.0,121370.0,0.21622521]
[1760074515095,0.89048067,121380.0,121370.0,0.05143985]
[1760074515487,0.89048067,121380.0,121370.0,0.02876985]
[1760074515683,0.89048067,121380.0,121370.0,0.02976985]
[1760074516809,0.89048067,121380.0,121370.0,0.05243985]
[1760074517220,0.8898467,121380.0,121370.0,0.21722521]
[1760074517420,0.8898067,121380.0,121370.0,0.21722521]
[1760074517648,0.2278067,121380.0,121370.0,0.21722521]
[1760074517864,0.8898067,121380.0,121370.0,0.21722521]
[1760074519199,0.8898067,121380.0,121370.0,0.05243985]
[1760074519833,0.8898067,121380.0,121370.0,0.21722521]
[1760074520078,0.72499491,121380.0,121370.0,0.21722521]
[1760074520298,0.66196,121380.0,121370.0,0.21722521]
[1760074521349,0.82673179,121380.0,121370.0,0.21722521]
[1760074523354,0.88719662,121380.0,121370.0,0.21722521]
[1760074524114,0.72242483,121380.0,121370.0,0.21722521]
[1760074525379,0.22523662,121380.0,121370.0,0.21722521]
[1760074525593,0.88711662,121380.0,121370.0,0.21722521]
[1760074527508,0.72234483,121380.0,121370.0,0.21722521]
[1760074528361,0.06046483,121380.0,121370.0,0.21722521]
[1760074528558,0.34304,121390.0,121380.0,0.16476316]
[1760074528915,0.63372,121390.0,121380.0,0.21472316]
[1760074529703,0.79847821,121390.0,121380.0,0.21472316]
[1760074529925,0.39783821,121390.0,121380.0,0.21572316]
[1760074530117,0.82663821,121390.0,121380.0,0.21572316]
[1760074533286,0.82663821,121390.0,121380.0,0.05096]
[1760074533923,0.82663821,121390.0,121380.0,0.05147468]
[1760074534739,0.82663821,121390.0,121380.0,0.21624647]
[1760074535389,0.66188,121390.0,121380.0,0.21624647]
[1760074535603,0.6618,121390.0,121380.0,0.21624647]
[1760074536038,0.82655821,121390.0,121380.0,0.21624647]
[1760074536678,0.82655821,121390.0,121380.0,0.02880468]
[1760074536890,0.82655821,121390.0,121380.0,0.05154468]
[1760074537975,0.82655821,121390.0,121380.0,0.21631647]
[1760074543500,0.82655821,121390.0,121380.0,0.19357647]
[1760074545016,0.82655821,121390.0,121380.0,0.02880468]
[1760074546386,0.83427308,121390.0,121380.0,0.02880468]
[1760074547100,0.98856769,121390.0,121380.0,0.00151468]
[1760074547319,1.22148769,121390.0,121380.0,0.00151468]
[1760074547570,0.98856769,121390.0,121380.0,0.00151468]
[1760074547769,1.22148769,121390.0,121380.0,0.01691468]
[1760074548211,1.22148769,121390.0,121380.0,0.00151468]
[1760074550240,1.22148769,121390.0,121380.0,0.01691468]
[1760074550657,1.00400018,121390.0,121380.0,0.00151468]
[1760074550868,1.23692018,121390.0,121380.0,0.00151468]
[1760074551940,1.55441365,121390.0,121380.0,0.00151468]
[1760074552160,1.70733685,121390.0,121380.0,0.00151468]
[1760074553021,1.73074614,121390.0,121380.0,0.00151468]
[1760074553236,2.07074614,121390.0,121380.0,0.00151468]
[1760074554610,2.04733685,121390.0,121380.0,0.00151468]
[1760074558447,1.18694763,121390.0,121380.0,0.00151468]
[1760074558662,1.65996224,121390.0,121380.0,0.00151468]
[1760074560615,1.65996602,121390.0,121380.0,0.00151468]
[1760074562591,1.65224737,121390.0,121380.0,0.00151468]
[1760074562835,1.65996481,121390.0,121380.0,0.00151468]
[1760074563026,1.2726702,121390.0,121380.0,0.00151468]
[1760074563273,1.65996481,121390.0,121380.0,0.00151468]
[1760074563920,1.46945815,121390.0,121380.0,0.00151468]
[1760074564538,2.02151097,121390.0,121380.0,0.00151468]
[1760074565381,1.24692175,121390.0,121380.0,0.00151468]
[1760074565619,2.02151097,121390.0,121380.0,0.00151468]
[1760074566739,2.17588558,121390.0,121380.0,0.00151468]
[1760074566990,2.40880558,121390.0,121380.0,0.00151468]
[1760074567207,2.42053558,121390.0,121380.0,0.00151468]
[1760074568290,2.03324097,121390.0,121380.0,0.00151468]
[1760074568954,2.42053558,121390.0,121380.0,0.00051468]
[1760074569177,2.03324097,121390.0,121380.0,0.00051468]
[1760074569401,2.03324097,121390.0,121380.0,0.00151468]
[1760074569840,2.03323564,121390.0,121380.0,0.00151468]
[1760074570086,2.03323564,121390.0,121380.0,0.00051468]
[1760074570725,2.37623564,121390.0,121380.0,0.00051468]
[1760074571363,2.82113564,121390.0,121380.0,0.00051468]
[1760074574248,2.97551025,121390.0,121380.0,0.00051468]
[1760074574470,3.20847025,121390.0,121380.0,0.00051468]
[1760074574682,3.22623132,121390.0,121380.0,0.00051468]
[1760074574892,3.22686529,121390.0,121380.0,0.00051468]
[1760074575757,3.22686205,121390.0,121380.0,0.00051468]
[1760074575955,3.32227668,121390.0,121380.0,0.00051468]
[1760074576164,1.32665562,121380.0,121370.0,0.00045041]
[1760074576374,1.66586438,121380.0,121370.0,0.00045041]
[1760074576798,1.66586438,121380.0,121370.0,0.00096515]
[1760074577472,1.66586425,121380.0,121370.0,0.00096515]
[1760074577687,1.69062361,121380.0,121370.0,0.00096515]
[1760074578354,2.03062361,121380.0,121370.0,0.00096515]
[1760074579445,2.09105755,121380.0,121370.0,0.00096515]
[1760074579719,0.69621372,121380.0,121370.0,0.00096515]
[1760074579940,1.74526833,121380.0,121370.0,0.00096515]
[1760074580162,0.69621372,121380.0,121370.0,0.01743515]
[1760074580378,0.69418292,121380.0,121370.0,0.05348515]
[1760074580602,0.91172509,121380.0,121370.0,0.05348515]
[1760074580828,0.22520573,121380.0,121370.0,0.05348515]
[1760074581066,0.16539218,121390.0,121370.0,0.62204365]
[1760074581292,0.16477179,121380.0,121370.0,0.19356051]
[1760074581511,0.48349179,121380.0,121370.0,0.02877515]
[1760074581733,0.8707864,121380.0,121370.0,0.02877515]
[1760074581943,0.8707864,121380.0,121370.0,0.05348515]
[1760074582594,0.48349179,121380.0,121370.0,0.05348515]
[1760074583732,0.6378264,121380.0,121370.0,0.00096515]
[1760074583961,1.25808101,121380.0,121370.0,0.00096515]
[1760074584431,0.48349179,121380.0,121370.0,0.00096515]
[1760074584651,1.25808101,121380.0,121370.0,0.00096515]
[1760074584903,0.8707864,121380.0,121370.0,0.00096515]
[1760074586811,1.25808101,121380.0,121370.0,0.00096515]
[1760074587496,1.28121479,121380.0,121370.0,0.00096515]
[1760074587713,1.04054353,121380.0,121370.0,0.00096515]
[1760074587925,1.34261269,121380.0,121370.0,0.00096515]
[1760074588156,1.31947873,121380.0,121370.0,0.00096515]
[1760074588617,1.68261335,121380.0,121370.0,0.00096515]
[1760074590734,0.90802413,121380.0,121370.0,0.00096515]
[1760074590953,1.68261335,121380.0,121370.0,0.00096515]
[1760074591389,1.36389335,121380.0,121370.0,0.00096515]
[1760074591616,1.87581541,121380.0,121370.0,0.00096515]
[1760074591837,2.10877541,121380.0,121370.0,0.00096515]
[1760074592080,2.13353265,121380.0,121370.0,0.00096515]
[1760074597113,2.13353609,121380.0,121370.0,0.00096515]
[1760074597303,2.13353606,121380.0,121370.0,0.00096515]
[1760074598391,2.13353608,121380.0,121370.0,0.00096515]
[1760074599327,1.47177608,121380.0,121370.0,0.00096515]
[1760074599548,2.13353603,121380.0,121370.0,0.00096515]
[1760074601453,2.13417,121380.0,121370.0,0.00096515]
[1760074602107,1.47241,121380.0,121370.0,0.00096515]
[1760074602460,2.13417,121380.0,121370.0,0.00096515]
[1760074602763,1.90121,121380.0,121370.0,0.00096515]
[1760074602973,2.13417,121380.0,121370.0,0.00096515]
[1760074603217,1.47241,121380.0,121370.0,0.00096515]
[1760074603483,2.13417,121380.0,121370.0,0.00096515]
[1760074605486,1.35958704,121380.0,121370.0,0.00096515]
[1760074605703,1.8762479,121380.0,121370.0,0.00096515]
[1760074606755,1.2144879,121380.0,121370.0,0.00096515]
[1760074606969,0.84766498,121380.0,121370.0,0.00096515]
[1760074607193,1.27646498,121380.0,121370.0,0.00096515]
[1760074607964,0.61470622,121380.0,121370.0,0.01610515]
[1760074608180,1.01874898,121380.0,121370.0,0.05011515]
[1760074608408,1.25170898,121380.0,121370.0,0.05011515]
[1760074608834,1.25170898,121380.0,121370.0,0.02741515]
[1760074609055,1.25170958,121380.0,121370.0,0.02741515]
[1760074609278,0.58994958,121380.0,121370.0,0.02741515]
[1760074609718,1.25170958,121380.0,121370.0,0.02741515]
[1760074610156,1.25171029,121380.0,121370.0,0.02741515]
[1760074611072,1.25171029,121380.0,121370.0,0.05011515]
[1760074611551,0.66176,121380.0,121370.0,0.23137904]
[1760074611778,0.66176,121380.0,121370.0,0.21490051]
[1760074612601,0.23296,121380.0,121370.0,0.21490051]